fUST/lending_fUST_20250225
["ID","MTS","AMOUNT","RATE_DAILY","PERIOD"]
[354415072,1740479440843,-1284.22,0.00069589,120]
[354415073,1740479440872,-1166.16,0.00069589,120]
[354415074,1740479440900,-500.0,0.00069589,120]
[354415075,1740479440927,-500.0,0.00070134,120]
[354415076,1740479440958,-500.0,0.00070134,120]
[354415077,1740479440983,-500.02662678,0.00070134,120]
[354415078,1740479441011,-500.0,0.00070135,120]
[354415079,1740479441038,-1180.31,0.00070136,120]
[354415080,1740479441064,-500.0,0.00070136,120]
[354415081,1740479441089,-500.0,0.00070136,120]
[354415082,1740479441121,-901.91,0.00070136,120]
[354415083,1740479441159,-500.0,0.00070136,120]
[354415084,1740479441194,-500.0,0.00070136,120]
[354415085,1740479441231,-500.0,0.00070136,120]
[354415086,1740479441267,-500.0,0.00070136,120]
[354415087,1740479441300,-500.0,0.00070136,120]
[354415088,1740479441332,-500.0,0.00070136,120]
[354415089,1740479441367,-500.0,0.00070136,120]
[354415090,1740479441402,-500.0,0.00070136,120]
[354415091,1740479441437,-386.44,0.00070136,120]
[354415092,1740479441470,-500.0,0.00070136,120]
[354415093,1740479441502,-1034.21,0.00070136,120]
[354415094,1740479441535,-1710.44,0.00070136,120]
[354415095,1740479441567,-500.0,0.00070136,120]
[354415096,1740479441599,-500.0,0.00070136,120]
[354415097,1740479441630,-1284.22,0.00070136,120]
[354415098,1740479441666,-1166.16,0.00070136,120]
[354415099,1740479441705,-235.96423776,0.00070136,120]
[354415100,1740479441735,-500.0,0.00070682,120]
[354415101,1740479441763,-500.0,0.00070682,120]
[354415102,1740479441797,-500.0,0.00070683,120]
[354415103,1740479441828,-1180.31,0.00070684,120]
[354415104,1740479441856,-500.0,0.00070684,120]
[354415105,1740479441888,-500.0,0.00070684,120]
[354415106,1740479441920,-901.91,0.00070684,120]
[354415107,1740479441952,-500.0,0.00070684,120]
[354415108,1740479441983,-500.0,0.00070684,120]
[354415109,1740479442015,-500.0,0.00070684,120]
[354415110,1740479442046,-500.0,0.00070684,120]
[354415111,1740479442078,-500.0,0.00070684,120]
[354415112,1740479442108,-500.0,0.00070684,120]
[354415113,1740479442140,-500.0,0.00070684,120]
[354415114,1740479442171,-500.0,0.00070684,120]
[354415115,1740479442203,-500.0,0.00070684,120]
[354415116,1740479442233,-1034.21,0.00070684,120]
[354415117,1740479442267,-1710.44,0.00070684,120]
[354415118,1740479442300,-500.0,0.00070684,120]
[354415119,1740479442332,-500.0,0.00070684,120]
[354415120,1740479442363,-1284.22,0.00070684,120]
[354415121,1740479442395,-1166.16,0.00070684,120]
[354415122,1740479442425,-500.0,0.0007123,120]
[354415123,1740479442588,-1180.31,0.00071232,120]
[354415124,1740479442620,-901.91,0.00071232,120]
[354415125,1740479442648,-500.0,0.00071232,120]
[354415126,1740479442676,-500.0,0.00071232,120]
[354415127,1740479442704,-500.0,0.00071232,120]
[354415128,1740479442731,-500.0,0.00071232,120]
[354415129,1740479442756,-500.0,0.00071232,120]
[354415130,1740479442782,-500.0,0.00071232,120]
[354415131,1740479442811,-500.0,0.00071232,120]
[354415132,1740479442840,-500.0,0.00071232,120]
[354415133,1740479442869,-402.43,0.00071232,120]
[354415134,1740479442894,-1034.21,0.00071232,120]
[354415135,1740479442923,-1710.44,0.00071232,120]
[354415136,1740479442955,-500.0,0.00071232,120]
[354415137,1740479442983,-500.0,0.00071232,120]
[354415138,1740479443011,-1284.22,0.00071232,120]
[354415139,1740479443046,-1166.16,0.00071232,120]
[354415141,1740479443073,-500.0,0.00071778,120]
[354415142,1740479443102,-500.0,0.00071778,120]
[354415144,1740479443131,-495.06580342,0.00071779,120]
[354415149,1740479443157,-1180.31,0.0007178,120]
[354415157,1740479443191,-901.91,0.0007178,120]
[354415161,1740479443220,-500.0,0.0007178,120]
[354415165,1740479443250,-500.0,0.0007178,120]
[354415170,1740479443279,-500.0,0.0007178,120]
[354415176,1740479443306,-500.0,0.0007178,120]
[354415184,1740479443334,-197.3962367,0.0007178,120]
[354415187,1740479443363,-500.0,0.0007178,120]
[354415189,1740479443391,-500.0,0.0007178,120]
[354415193,1740479443418,-500.0,0.0007178,120]
[354415196,1740479443444,-1034.21,0.0007178,120]
[354415200,1740479443474,-1710.44,0.0007178,120]
[354415204,1740479443500,-500.0,0.0007178,120]
[354415207,1740479443527,-616.48669098,0.0007178,120]
[354415211,1740479443554,-1284.22,0.0007178,120]
[354415215,1740479443583,-1166.16,0.0007178,120]
[354415219,1740479443610,-500.0,0.00072326,120]
[354415223,1740479443642,-500.0,0.00072327,120]
[354415227,1740479443671,-1180.31,0.00072328,120]
[354415230,1740479443702,-901.91,0.00072328,120]
[354415234,1740479443731,-500.0,0.00072328,120]
[354415238,1740479443761,-599.4,0.00072328,120]
[354415242,1740479443789,-500.0,0.00072328,120]
[354415245,1740479443817,-500.0,0.00072328,120]
[354415246,1740479443844,-500.0,0.00072328,120]
[354415247,1740479443874,-500.0,0.00072328,120]
[354415248,1740479443902,-500.0,0.00072328,120]
[354415249,1740479443928,-1034.21,0.00072328,120]
[354415250,1740479443962,-1710.44,0.00072328,120]
[354415251,1740479443991,-500.0,0.00072328,120]
[354415253,1740479444019,-1284.22,0.00072328,120]
[354415257,1740479444048,-1166.16,0.00072328,120]
[354415261,1740479444076,-500.0,0.00072874,120]
[354415264,1740479444105,-1180.31,0.00072876,120]
[354415268,1740479444136,-901.91,0.00072876,120]
[354415273,1740479444172,-638.92,0.00072876,120]
[354415277,1740479444206,-500.0,0.00072876,120]
[354415281,1740479444237,-500.0,0.00072876,120]
[354415285,1740479444270,-500.0,0.00072876,120]
[354415289,1740479444302,-500.0,0.00072876,120]
[354415294,1740479444334,-500.0,0.00072876,120]
[354415297,1740479444363,-1034.21,0.00072876,120]
[354415302,1740479444398,-1710.44,0.00072876,120]
[354415304,1740479444430,-500.0,0.00072876,120]
[354415311,1740479444465,-1284.22,0.00072876,120]
[354415316,1740479444497,-1166.16,0.00072876,120]
[354415317,1740479444525,-500.0,0.00073422,120]
[354415318,1740479444554,-500.0,0.00073423,120]
[354415319,1740479444583,-1180.31,0.00073424,120]
[354415320,1740479444623,-901.91,0.00073424,120]
[354415321,1740479444665,-500.0,0.00073424,120]
[354415322,1740479444699,-500.0,0.00073424,120]
[354415323,1740479444729,-500.0,0.00073424,120]
[354415324,1740479444759,-365.94426899,0.00073424,120]
[354415325,1740479444791,-500.0,0.00073424,120]
[354415326,1740479444820,-1034.21,0.00073424,120]
[354415327,1740479444852,-1710.44,0.00073424,120]
[354415328,1740479444885,-500.0,0.00073424,120]
[354415329,1740479444916,-1284.22,0.00073424,120]
[354415330,1740479444951,-1166.16,0.00073424,120]
[354415331,1740479444978,-500.0,0.0007397,120]
[354415332,1740479445006,-1180.31,0.00073972,120]
[354415333,1740479445036,-901.91,0.00073972,120]
[354415334,1740479445066,-500.0,0.00073972,120]
[354415335,1740479445094,-500.0,0.00073972,120]
[354415336,1740479445123,-216.48367118,0.00073972,120]
[354415337,1740479445153,-1034.21,0.00073972,120]
[354415338,1740479445189,-1710.44,0.00073972,120]
[354415339,1740479445220,-500.0,0.00073972,120]
[354415340,1740479445357,-1284.22,0.00073972,120]
[354415343,1740479445394,-1166.16,0.00073972,120]
[354415346,1740479445425,-3000.0,0.0007442,120]
[354415347,1740479445464,-500.0,0.00074518,120]
[354415348,1740479445494,-500.0,0.00074519,120]
[354415349,1740479445523,-1180.31,0.0007452,120]
[354415350,1740479445553,-901.91,0.0007452,120]
[354415351,1740479445582,-500.0,0.0007452,120]
[354415352,1740479445610,-500.0,0.0007452,120]
[354415353,1740479445646,-1034.21,0.0007452,120]
[354415354,1740479445679,-1710.44,0.0007452,120]
[354415355,1740479445715,-500.0,0.0007452,120]
[354415356,1740479445743,-1284.22,0.0007452,120]
[354415357,1740479445773,-1166.16,0.0007452,120]
[354415358,1740479445801,-500.0,0.00075066,120]
[354415359,1740479445828,-1180.31,0.00075068,120]
[354415360,1740479445857,-901.91,0.00075068,120]
[354415361,1740479445887,-500.0,0.00075068,120]
[354415362,1740479445915,-500.0,0.00075068,120]
[354415363,1740479445943,-1034.21,0.00075068,120]
[354415364,1740479445972,-1710.44,0.00075068,120]
[354415365,1740479446000,-500.0,0.00075068,120]
[354415366,1740479446026,-1284.22,0.00075068,120]
[354415369,1740479446059,-1166.16,0.00075068,120]
[354415370,1740479446087,-2819.0591735,0.00075382,120]
[354415372,1740479446115,-500.0,0.00075613,120]
[354415373,1740479446144,-500.0,0.00075613,120]
[354415374,1740479446174,-1180.31,0.00075616,120]
[354415376,1740479446207,-901.91,0.00075616,120]
[354415377,1740479446237,-500.0,0.00075616,120]
[354415378,1740479446265,-500.0,0.00075616,120]
[354415379,1740479446296,-1034.21,0.00075616,120]
[354415383,1740479446326,-1710.44,0.00075616,120]
[354415388,1740479446354,-500.0,0.00075616,120]
[354415392,1740479446380,-1284.22,0.00075616,120]
[354415398,1740479446411,-1166.16,0.00075616,120]
[354415403,1740479446442,-500.0,0.00076161,120]
[354415409,1740479446470,-1180.31,0.00076164,120]
[354415416,1740479446500,-901.91,0.00076164,120]
[354415420,1740479446528,-500.0,0.00076164,120]
[354415424,1740479446556,-500.0,0.00076164,120]
[354415428,1740479446582,-1034.21,0.00076164,120]
[354415432,1740479446612,-1710.44,0.00076164,120]
[354415436,1740479446644,-548.34,0.00076164,120]
[354415440,1740479446671,-1284.22,0.00076164,120]
[354415444,1740479446702,-1166.16,0.00076164,120]
[354415448,1740479446732,-500.0,0.00076709,120]
[354415452,1740479446760,-500.0,0.00076711,120]
[354415456,1740479446788,-1180.31,0.00076712,120]
[354415460,1740479446816,-901.91,0.00076712,120]
[354415464,1740479446843,-500.0,0.00076712,120]
[354415468,1740479446870,-500.0,0.00076712,120]
[354415472,1740479446897,-1034.21,0.00076712,120]
[354415476,1740479446927,-1710.44,0.00076712,120]
[354415480,1740479446959,-1284.22,0.00076712,120]
[354415484,1740479446989,-1166.16,0.00076712,120]
[354415488,1740479447019,-500.0,0.00076718,120]
[354415492,1740479447047,-345.5792,0.00076718,120]
[354415495,1740479447074,-500.0,0.00077257,120]
[354415499,1740479447101,-1180.31,0.0007726,120]
[354415503,1740479447129,-901.91,0.0007726,120]
[354415507,1740479447158,-627.42,0.0007726,120]
[354415511,1740479447189,-500.0,0.0007726,120]
[354415515,1740479447217,-1034.21,0.0007726,120]
[354415519,1740479447248,-1710.44,0.0007726,120]
[354415523,1740479447277,-1284.22,0.0007726,120]
[354415526,1740479447306,-1166.16,0.0007726,120]
[354415530,1740479447336,-500.0,0.00077805,120]
[354415534,1740479447364,-1180.31,0.00077808,120]
[354415538,1740479447395,-901.91,0.00077808,120]
[354415542,1740479447423,-368.6,0.00077808,120]
[354415546,1740479447453,-1034.21,0.00077808,120]
[354415550,1740479447485,-1710.44,0.00077808,120]
[354415554,1740479447515,-1284.22,0.00077808,120]
[354415558,1740479447544,-1166.16,0.00077808,120]
[354415562,1740479447571,-902.77688416,0.00078,120]
[354415566,1740479447598,-500.0,0.00078353,120]
[354415569,1740479447628,-1180.37,0.00078356,120]
[354415574,1740479447658,-902.06,0.00078356,120]
[354415577,1740479447689,-1034.25473902,0.00078356,120]
[354415581,1740479447720,-1710.44518449,0.00078356,120]
[354415585,1740479447747,-1284.2643729,0.00078356,120]
[354415590,1740479447776,-1166.3132092,0.00078356,120]
[354415593,1740479447801,-1512.20603,0.000789,120]
[354415597,1740479447827,-293.46762552,0.00078901,120]
[354415601,1740479447856,-697.00980197,0.00082192,120]
[354415614,1740479447884,-697.00980197,0.00082192,120]
[354415618,1740479448009,-697.00980197,0.00082192,120]
[354415622,1740479448039,-697.00980197,0.00082192,120]
[354415626,1740479448067,-697.00980197,0.00082192,120]
[354415630,1740479448095,-697.00980197,0.00082192,120]
[354415634,1740479448124,-697.00980197,0.00082192,120]
[354415637,1740479448152,-697.00980197,0.00082192,120]
[354415641,1740479448181,-697.00980197,0.00082192,120]
[354415645,1740479448212,-697.00980197,0.00082192,120]
[354415649,1740479448241,-697.00980197,0.00082192,120]
[354415653,1740479448270,-697.00980197,0.00082192,120]
[354415657,1740479448300,-697.00980197,0.00082192,120]
[354415661,1740479448335,-697.00980197,0.00082192,120]
[354415664,1740479448364,-697.00980197,0.00082192,120]
[354415665,1740479448392,-697.00980197,0.00082192,120]
[354415666,1740479448421,-697.00980197,0.00082192,120]
[354415667,1740479448455,-697.00980197,0.00082192,120]
[354415668,1740479448485,-697.00980197,0.00082192,120]
[354415671,1740479448515,-697.00980197,0.00082192,120]
[354415675,1740479448547,-697.00980197,0.00082192,120]
[354415679,1740479448576,-697.00980197,0.00082192,120]
[354415683,1740479448603,-697.00980197,0.00082192,120]
[354415687,1740479448632,-697.00980197,0.00082192,120]
[354415691,1740479448664,-697.00980197,0.00082192,120]
[354415695,1740479448695,-697.00980197,0.00082192,120]
[354415699,1740479448725,-697.00980197,0.00082192,120]
[354415703,1740479448755,-697.00980197,0.00082192,120]
[354415706,1740479448782,-697.00980197,0.00082192,120]
[354415710,1740479448810,-697.00980197,0.00082192,120]
[354415714,1740479448840,-697.00980197,0.00082192,120]
[354415718,1740479448869,-697.00980197,0.00082192,120]
[354415722,1740479448898,-697.00980197,0.00082192,120]
[354415726,1740479448928,-697.00980197,0.00082192,120]
[354415730,1740479448963,-697.00980197,0.00082192,120]
[354415734,1740479448992,-697.00980197,0.00082192,120]
[354415737,1740479449023,-697.00980197,0.00082192,120]
[354415741,1740479449053,-697.00980197,0.00082192,120]
[354415745,1740479449084,-697.00980197,0.00082192,120]
[354415748,1740479449115,-697.00980197,0.00082192,120]
[354415749,1740479449145,-697.00980197,0.00082192,120]
[354415750,1740479449175,-697.00980197,0.00082192,120]
[354415751,1740479449207,-697.00980197,0.00082192,120]
[354415752,1740479449237,-697.00980197,0.00082192,120]
[354415753,1740479449268,-697.00980197,0.00082192,120]
[354415754,1740479449300,-697.00980197,0.00082192,120]
[354415755,1740479449330,-697.00980197,0.00082192,120]
[354415756,1740479449361,-697.00980197,0.00082192,120]
[354415757,1740479449392,-697.00980197,0.00082192,120]
[354415758,1740479449423,-697.00980197,0.00082192,120]
[354415759,1740479449456,-697.00980197,0.00082192,120]
[354415760,1740479449485,-697.00980197,0.00082192,120]
[354415761,1740479449515,-697.00980197,0.00082192,120]
[354415762,1740479449546,-697.00980197,0.00082192,120]
[354415763,1740479449575,-697.00980197,0.00082192,120]
[354415764,1740479449607,-697.00980197,0.00082192,120]
[354415765,1740479449639,-697.00980197,0.00082192,120]
[354415766,1740479449667,-2870.28957062,0.00082192,120]
[354415767,1740479449696,-2870.28957062,0.00082192,120]
[354415768,1740479449727,-2870.28957062,0.00082192,120]
[354415769,1740479449755,-2870.28957062,0.00082192,120]
[354415770,1740479449782,-2870.28957062,0.00082192,120]
[354415771,1740479449809,-2870.28957062,0.00082192,120]
[354415772,1740479449838,-2870.28957062,0.00082192,120]
[354415773,1740479449868,-2870.28957062,0.00082192,120]
[354415774,1740479449898,-2870.28957062,0.00082192,120]
[354415775,1740479449926,-2870.28957062,0.00082192,120]
[354415776,1740479449959,-2870.28957062,0.00082192,120]
[354415777,1740479449990,-2870.28957062,0.00082192,120]
[354415778,1740479450019,-2870.28957062,0.00082192,120]
[354415779,1740479450050,-2870.28957062,0.00082192,120]
[354415780,1740479450085,-2870.28957062,0.00082192,120]
[354415781,1740479450117,-2870.28957062,0.00082192,120]
[354415782,1740479450149,-2870.28957062,0.00082192,120]
[354415783,1740479450181,-2870.28957062,0.00082192,120]
[354415784,1740479450217,-2870.28957062,0.00082192,120]
[354415785,1740479450251,-2870.28957062,0.00082192,120]
[354415786,1740479450286,-2870.28957062,0.00082192,120]
[354415787,1740479450319,-2870.28957062,0.00082192,120]
[354415788,1740479450354,-2870.28957062,0.00082192,120]
[354415789,1740479450385,-2870.28957062,0.00082192,120]
[354415790,1740479450415,-2870.28957062,0.00082192,120]
[354415791,1740479450450,-2870.28957062,0.00082192,120]
[354415792,1740479450481,-2870.28957062,0.00082192,120]
[354415793,1740479450601,-2870.28957062,0.00082192,120]
[354415794,1740479450636,-2870.28957062,0.00082192,120]
[354415795,1740479450669,-2870.28957062,0.00082192,120]
[354415796,1740479450705,-2870.28957054,0.00082192,120]
[354415797,1740479450738,-1287977.16275787,0.0009,120]
[354415798,1740479451484,-500.0,0.00065753,2]
[354415799,1740479451494,-500.0,0.00065753,30]
[354415800,1740479451504,-598.44,0.00065753,3]
[354415801,1740479451514,-500.53372305,0.00065753,30]
[354415802,1740479451524,-501.02627695,0.00065753,21]
[354415803,1740479451535,-2.95307058,0.00065753,21]
[354415804,1740479451545,-7168.13,0.00065753,7]
[354415805,1740479451554,-505.18278867,0.00065753,120]
[354415806,1740479451563,-500.0,0.00065753,120]
[354415807,1740479451573,-500.0,0.00065753,120]
[354415808,1740479451583,-500.0,0.00065753,120]
[354415809,1740479451592,-503.13047646,0.00065753,120]
[354415810,1740479451602,-500.0,0.00065753,120]
[354415811,1740479451611,-500.0,0.00065753,120]
[354415812,1740479451622,-500.0,0.00065753,120]
[354415813,1740479451631,-500.0,0.00065753,120]
[354415814,1740479451642,-2493.15844191,0.000659,16]
[354415815,1740479451652,-1511.68,0.00066291,30]
[354415816,1740479451661,-1259.73,0.00066291,30]
[354415817,1740479451672,-1049.77,0.00066291,30]
[354415818,1740479451681,-159.38,0.000663,30]
[354415819,1740479451695,-500.0,0.00066301,2]
[354415820,1740479451705,-500.0,0.00066301,30]
[354415821,1740479451716,-598.44,0.00066301,3]
[354415822,1740479451726,-1185.06073617,0.00066301,7]
[354415823,1740479451738,-1084.81050534,0.00066301,7]
[354415824,1740479451749,-4898.25875849,0.00066301,7]
[354415825,1740479451760,-500.0,0.00066301,120]
[354415826,1740479451770,-500.0,0.00066301,120]
[354415827,1740479451779,-500.0,0.00066301,120]
[354415828,1740479451789,-500.0,0.00066301,120]
[354415829,1740479451798,-504.25138001,0.00066301,120]
[354415830,1740479451809,-500.0,0.00066301,120]
[354415831,1740479451818,-1319.93386573,0.00066839,6]
[354415832,1740479451830,-2784.14622919,0.00066839,6]
[354415833,1740479451839,-500.0,0.00066849,2]
[354415834,1740479451849,-598.44,0.00066849,3]
[354415835,1740479451859,-0.05020327,0.00066849,7]
[354415836,1740479451905,-500.0,0.00065753,120]
[354415837,1740479451936,-500.0,0.00065753,120]
[354415838,1740479451974,-7168.07979673,0.00066849,7]
[354415839,1740479452005,-500.0,0.00066849,120]
[354415840,1740479452035,-500.0,0.00066849,120]
[354415841,1740479452066,-500.0,0.00066849,120]
[354415842,1740479452095,-500.0,0.00067373,10]
[354415843,1740479452123,-501.06186715,0.00067373,15]
[354415844,1740479452153,-4104.08009492,0.00067387,6]
[354415845,1740479452187,-1000.0,0.00067394,20]
[354415846,1740479452223,-500.0,0.00067394,30]
[354415847,1740479452256,-500.0,0.00067394,30]
[354415848,1740479452286,-500.0,0.00067397,2]
[354415849,1740479452317,-598.44,0.00067397,3]
[354415850,1740479452348,-7168.13,0.00067397,7]
[354415851,1740479452381,-500.0,0.00067397,120]
[354415852,1740479452412,-500.0,0.00067397,120]
[354415853,1740479452446,-456.31168577,0.00067397,120]
[354415854,1740479452476,-522.41592077,0.00067921,10]
[354415855,1740479452506,-874.81,0.00067935,30]
[354415856,1740479452535,-1082.31990766,0.00067942,20]
[354415857,1740479452565,-506.06906116,0.00067942,30]
[354415858,1740479452594,-502.35879153,0.00067942,30]
[354415859,1740479452625,-500.0,0.00067945,2]
[354415860,1740479452655,-598.44,0.00067945,3]
[354415861,1740479452784,-7168.13,0.00067945,7]
[354415862,1740479452819,-377.26331698,0.00067945,120]
[354415863,1740479452849,-500.0,0.00067945,120]
[354415864,1740479452878,-500.0,0.00068473,15]
[354415865,1740479452910,-500.0,0.00068473,15]
[354415866,1740479452942,-500.0,0.00068473,15]
[354415867,1740479452972,-500.09388472,0.00068473,15]
[354415868,1740479453002,-507.30543623,0.00068473,15]
[354415869,1740479453032,-500.19002515,0.00068473,5]
[354415870,1740479453062,-500.0,0.00068473,2]
[354415871,1740479453092,-500.0,0.00068473,15]
[354415872,1740479453124,-4104.08009492,0.00068483,6]
[354415873,1740479453155,-515.99230837,0.00068493,2]
[354415874,1740479453191,-598.44,0.00068493,3]
[354415875,1740479453225,-7168.13,0.00068493,7]
[354415876,1740479453256,-500.0,0.00068493,120]
[354415877,1740479453285,-1000.0,0.00069021,15]
[354415878,1740479453315,-1000.0,0.00069021,15]
[354415879,1740479453345,-502.53982847,0.00069021,15]
[354415880,1740479453375,-1007.36560916,0.00069021,15]
[354415881,1740479453407,-598.44,0.00069041,3]
[354415882,1740479453439,-7168.13,0.00069041,7]
[354415883,1740479453472,-500.0,0.00069041,120]
[354415884,1740479453505,-4104.08009492,0.00069579,6]
[354415885,1740479453536,-598.44,0.00069589,3]
[354415886,1740479453567,-7168.13,0.00069589,7]
[354415887,1740479453596,-500.0,0.00069589,120]
[354415888,1740479453626,-19402.82,0.000696,30]
[354415889,1740479453656,-857.0,0.000698,30]
[354415890,1740479453687,-1500.0,0.00070022,15]
[354415891,1740479453721,-163.14971782,0.00070035,2]
[354415892,1740479453752,-4104.08009492,0.00070125,6]
[354415893,1740479453782,-4104.08009492,0.00070126,6]
[354415894,1740479453812,-598.44,0.00070136,3]
[354415895,1740479453843,-7168.13,0.00070136,7]
[354415896,1740479453873,-500.0,0.00070136,120]
[354415897,1740479453922,-598.44,0.00070684,3]
[354415898,1740479453955,-7168.13,0.00070684,7]
[354415899,1740479453986,-471.3,0.00070684,120]
[354415900,1740479454018,-598.44,0.00071232,3]
[354415901,1740479454051,-7168.13,0.00071232,7]
[354415902,1740479454081,-159.38,0.000713,60]
[354415903,1740479454110,-2047.0,0.0007132,15]
[354415904,1740479454142,-500.0,0.00071426,15]
[354415905,1740479454174,-4104.08009492,0.0007177,6]
[354415906,1740479454206,-598.44,0.0007178,3]
[354415907,1740479454237,-7168.13,0.0007178,7]
[354415908,1740479454267,-325.72161358,0.00071973,15]
[354415909,1740479454299,-598.44,0.00072328,3]
[354415910,1740479454331,-7168.13,0.00072328,7]
[354415911,1740479454363,-598.44,0.00072876,3]
[354415912,1740479454395,-7168.13,0.00072876,7]
[354415913,1740479454427,-4104.08009492,0.00073414,6]
[354415914,1740479454462,-598.44,0.00073424,3]
[354415915,1740479454495,-7168.13,0.00073424,7]
[354415916,1740479454527,-598.44,0.00073972,3]
[354415917,1740479454559,-7168.13,0.00073972,7]
[354415918,1740479454588,-413.86,0.000745,30]
[354415919,1740479454620,-598.44,0.0007452,3]
[354415920,1740479454656,-7168.13,0.0007452,7]
[354415921,1740479454687,-4104.08009492,0.00075058,6]
[354415922,1740479454724,-598.44,0.00075068,3]
[354415923,1740479454757,-7168.13,0.00075068,7]
[354415924,1740479454790,-598.44,0.00075616,3]
[354415925,1740479454823,-7168.13,0.00075616,7]
[354415926,1740479454854,-317.63,0.000757,30]
[354415927,1740479454889,-598.44,0.00076164,3]
[354415928,1740479454922,-7168.13,0.00076164,7]
[354415929,1740479454955,-4104.08009492,0.0007619,6]
[354415930,1740479454984,-19402.82,0.000762,30]
[354415931,1740479455018,-598.44,0.00076712,3]
[354415932,1740479455051,-7168.13,0.00076712,7]
[354415933,1740479455083,-183.916514,0.00076844,30]
[354415934,1740479455117,-598.44,0.0007726,3]
[354415935,1740479455151,-7168.13,0.0007726,7]
[354415936,1740479455183,-192.94,0.000773,30]
[354415937,1740479455221,-598.44,0.00077808,3]
[354415938,1740479455255,-7168.13,0.00077808,7]
[354415939,1740479455289,-598.5217908,0.00078356,3]
[354415940,1740479455412,-7168.1439,0.00078356,7]
[354415941,1740479455448,-12312.2402848,0.00082182,8]
[354415942,1740479455480,-500.0,0.00083165,7]
[354415943,1740479455513,-500.0,0.00083165,60]
[354415944,1740479455547,-504.57497193,0.00083713,60]
[354415945,1740479455579,-413.86,0.000838,60]
[354415946,1740479455609,-503.00194578,0.00087817,60]
[354415947,1740479455648,-834.3019851,0.00097,120]
[354415948,1740479455679,-272.371041,0.00109589,120]
[354415949,1740479455713,-164.515,0.0011,120]
[354415950,1740479455750,500.0,0.00066301,120]
[354415951,1740479455789,500.0,0.00066301,120]
[354415952,1740479455825,500.0,0.00066849,120]
[354415953,1740479455860,507.84408955,0.00066849,120]
[354415954,1740479455897,500.0,0.00067397,120]
[354415955,1740479455939,500.0,0.00067945,120]
[354415956,1740479455988,500.0,0.00068493,120]
[354415957,1740479456025,500.0,0.00069041,120]
[354415958,1740479456060,500.0,0.00069589,120]
[354415959,1740479456096,500.0,0.00070136,120]
[354415960,1740479456134,500.0,0.00070684,120]
[354415961,1740479456174,500.0,0.00071232,120]
[354415962,1740479456210,296.61,0.0007178,120]
[354415963,1740479456246,157.84752274,0.00065753,120]
[354415964,1740479456281,500.0,0.00065753,120]
[354415965,1740479456320,503.7174134,0.00065753,120]
[354415966,1740479456343,-150.0,0.0012531,120]
[354415967,1740479456353,-150.0,0.001685,2]
[354415968,1740479456363,-420.46,0.001769,7]
[354415969,1740479456374,-350.38,0.001857,14]
[354415970,1740479456384,-280.31,0.00195,30]
[354415971,1740479456393,-3949.74074857,0.00198949,120]
[354415972,1740479456407,-6050.25925143,0.00198949,120]
[354415973,1740479456418,-317.63,0.00199,60]
[354415974,1740479456427,-4104.08009492,0.0019999,60]
[354415975,1740479456437,-200.38,0.002054,120]
[354415976,1740479456449,-10000.0,0.00219656,120]
[354415977,1740479456459,-159.38,0.0022,60]
[354415978,1740479456468,-184.58600655,0.0022157,120]
[354415979,1740479456480,-76.28815371,0.0022157,120]
[354415980,1740479456489,-3063.61184629,0.00242518,120]
[354415981,1740479456501,-856.575,0.00242518,120]
[354415982,1740479456512,-6079.81315371,0.00242518,120]
[354415983,1740479456522,-1875.90218114,0.00267759,120]